bitfinex/quotes_SOLUSD_20251115
["timestamp","ask_amount","ask_price","bid_price","bid_amount"]
[1763189958104,2.26744348,142.98,142.94,9.78882769]
[1763189958422,0.14216157,142.99,142.94,12.15627117]
[1763189958423,2.40960505,142.99,142.94,12.15627117]
[1763189958621,2.40960505,142.99,142.95,0.67]
[1763189958918,1.83960505,142.99,142.95,0.67]
[1763189959227,0.57,142.98,142.95,0.67]
[1763189959810,0.57,142.98,142.94,1.69744348]
[1763189960103,0.57,142.98,142.94,2.36744348]
[1763189960712,2.26744348,142.98,142.94,0.67]
[1763189961130,0.57,142.98,142.94,2.36744348]
[1763189962498,0.57,142.98,142.95,0.67]
[1763189962820,104.87,142.98,142.95,0.67]
[1763189963922,104.3,142.98,142.95,2.36744348]
[1763189964811,104.87,142.98,142.95,2.36744348]
[1763189965408,104.87,142.98,142.95,0.67]
[1763189969307,32.58218926,142.95,142.87,0.67]
[1763189969518,1.69744348,142.91,142.87,0.67]
[1763189969926,2.26744348,142.91,142.87,0.67]
[1763189970655,0.57,142.91,142.87,0.67]
[1763189971199,7.67021456,142.91,142.87,0.67]
[1763189971399,7.67021456,142.91,142.86,1.69744348]
[1763189971400,1.69744348,142.89,142.85,0.1]
[1763189971708,2.40960505,142.9,142.85,0.1]
[1763189971914,5.07298442,142.89,142.85,0.77]
[1763189974124,2.26744348,142.88,142.85,0.77]
[1763189975131,0.57,142.88,142.85,0.77]
[1763189975624,0.71216157,142.88,142.85,0.77]
[1763189976811,4.50298442,142.89,142.85,0.77]
[1763189977023,2.80554094,142.89,142.85,0.77]
[1763189977225,2.80554094,142.89,142.85,3.42166259]
[1763189977540,107.10554094,142.89,142.85,3.42166259]
[1763189977743,107.10554094,142.89,142.86,0.67]
[1763189977939,107.67554094,142.89,142.86,0.67]
[1763189979021,107.10554094,142.89,142.86,0.67]
[1763189980432,109.75720353,142.89,142.86,0.67]
[1763189980621,109.75720353,142.89,142.85,0.1]
[1763189980821,0.57,142.88,142.85,0.1]
[1763189981021,0.57,142.88,142.85,0.77]
[1763189984140,106.95166259,142.89,142.85,0.77]
[1763189984341,107.52166259,142.89,142.85,0.77]
[1763189986151,104.3,142.89,142.85,0.77]
[1763189986458,0.57,142.89,142.85,0.77]
[1763189986952,2.65166259,142.91,142.86,2.65166259]
[1763189987128,104.3,142.89,142.87,3.34166259]
[1763189987448,104.3,142.89,142.88,0.69]
[1763189988135,104.3,142.89,142.88,3.34166259]
[1763189989946,104.87,142.93,142.88,3.34166259]
[1763189990150,104.87,142.93,142.89,0.69]
[1763189992043,107.52166259,142.93,142.89,0.69]
[1763189992236,0.57,142.92,142.89,0.69]
[1763189992749,106.95166259,142.93,142.89,0.69]
[1763189992951,107.52166259,142.93,142.89,0.69]
[1763189999156,2.65166259,142.92,142.87,2.65166259]
[1763189999349,25.30286259,142.9,142.86,0.69]
[1763189999762,25.87286259,142.9,142.86,0.69]
[1763190000765,0.57,142.89,142.86,0.69]
[1763190002058,0.57,142.89,142.85,0.1]
[1763190002059,3.22166259,142.89,142.85,0.1]
[1763190002465,3.22166259,142.88,142.85,0.1]
[1763190002840,0.57,142.87,142.85,0.1]
[1763190004563,3.22166259,142.87,142.85,0.1]
[1763190005344,2.65166259,142.87,142.85,0.1]
[1763190005762,3.22166259,142.87,142.85,0.1]
[1763190006359,2.65166259,142.87,142.85,0.1]
[1763190006663,3.22166259,142.86,142.85,0.1]
[1763190006871,0.57,142.86,142.85,0.1]
[1763190007175,3.22166259,142.86,142.85,0.1]
[1763190008366,35.80385185,142.86,142.85,0.1]
[1763190008768,104.3,142.88,142.85,0.1]
[1763190009072,107.52166259,142.88,142.85,0.79]
[1763190009258,2.65166259,142.87,142.85,0.1]
[1763190009461,0.57,142.87,142.85,0.1]
[1763190012275,8.67291804,142.94,142.86,0.65]
[1763190012478,0.14216157,142.91,142.87,2.65166259]
[1763190012860,0.14216157,142.91,142.88,0.69]
[1763190013372,3.22166259,142.92,142.88,0.69]
[1763190014180,2.65166259,142.9,142.86,0.69]
[1763190014759,3.22166259,142.89,142.85,0.1]
[1763190014969,2.65166259,142.87,142.85,0.1]
[1763190015180,25.30286259,142.87,142.85,0.1]
[1763190015486,25.87286259,142.87,142.85,0.1]
[1763190018568,130.17286259,142.87,142.85,0.1]
[1763190019181,126.9512,142.87,142.85,0.1]
[1763190020079,126.9512,142.87,142.85,0.79]
[1763190020258,104.3,142.87,142.85,3.44166259]
[1763190020455,104.3,142.87,142.86,0.69]
[1763190022883,104.3,142.87,142.85,0.1]
[1763190023076,104.3,142.87,142.85,0.79]
[1763190024485,107.52166259,142.89,142.85,0.79]
[1763190027375,0.14216157,142.88,142.85,0.79]
[1763190027574,3.36382416,142.88,142.85,0.1]
[1763190027982,0.57,142.87,142.85,0.1]
[1763190029283,3.22166259,142.87,142.85,0.1]
[1763190029588,0.57,142.87,142.85,0.1]
[1763190031293,3.22166259,142.87,142.85,0.1]
[1763190034871,22.6512,142.86,142.85,0.1]
[1763190036181,126.9512,142.86,142.85,0.1]
[1763190038519,140.10385185,142.86,142.85,0.1]
[1763190038807,147.45196989,142.86,142.85,0.1]
[1763190038977,150.64114876,142.86,142.85,0.1]
[1763190039176,143.84714552,142.86,142.85,0.1]
[1763190043108,145.54564633,142.86,142.85,0.1]
[1763190043681,143.84714552,142.86,142.85,0.1]
[1763190044477,146.65406457,142.86,142.85,0.1]
[1763190047905,44.05256538,142.86,142.85,0.1]
[1763190049781,42.35406457,142.86,142.85,0.1]
[1763190049982,99.14806781,142.86,142.85,0.1]
[1763190051601,136.88218926,142.83,142.82,0.1]
[1763190051807,143.27714552,142.83,142.82,0.1]
[1763190052008,143.84714552,142.83,142.82,0.1]
[1763190052320,146.65485267,142.83,142.82,0.1]
[1763190054428,196.65485267,142.83,142.82,0.1]
[1763190056316,22.6512,142.78,142.77,0.1]
[1763190056505,34.1385285,142.78,142.77,0.1]
[1763190056824,34.85069007,142.78,142.77,0.1]
[1763190057502,37.65898859,142.78,142.77,0.1]
[1763190060908,35.39048778,142.78,142.77,0.1]
[1763190061120,37.65898859,142.78,142.77,0.1]
[1763190063249,37.08898859,142.78,142.77,0.1]
[1763190063731,37.65898859,142.78,142.77,0.1]
[1763190064918,37.08898859,142.78,142.77,0.1]
[1763190065119,37.65898859,142.78,142.77,0.1]
[1763190068316,164.23098926,142.77,142.72,0.1]
[1763190068514,164.23098926,142.77,142.75,0.7]
[1763190068515,114.08882769,142.76,142.75,0.7]
[1763190069010,116.89732338,142.76,142.75,0.7]
[1763190069433,0.14216157,142.75,142.72,0.1]
[1763190069623,9.93098926,142.75,142.74,0.7]
[1763190069810,11.62949007,142.75,142.74,0.7]
[1763190070014,11.62949007,142.75,142.72,0.8]
[1763190070239,0.14216157,142.73,142.72,0.8]
[1763190072439,1.69850081,142.74,142.72,0.8]
[1763190072625,0.14216157,142.75,142.72,0.8]
[1763190072823,1.84066238,142.75,142.72,0.8]
[1763190073433,1.84066238,142.73,142.72,0.76]
[1763190076240,0.14216157,142.73,142.72,0.76]
[1763190078128,1.84066238,142.73,142.72,0.76]
[1763190078333,34.28069007,142.73,142.72,0.1]
[1763190078522,37.08977746,142.73,142.72,0.1]
[1763190078844,15.00857746,142.73,142.72,0.1]
[1763190081742,15.00857746,142.73,142.71,0.1]
[1763190081743,132.58218926,142.72,142.71,0.1]
[1763190082041,134.85069007,142.72,142.71,0.1]
[1763190082246,0.14216157,142.71,142.7,0.1]
[1763190082460,0.14216157,142.71,142.67,0.1]
[1763190082461,22.79336157,142.68,142.67,0.1]
[1763190082754,34.28069007,142.68,142.67,0.1]
[1763190082935,41.29399504,142.68,142.67,0.1]
[1763190084444,41.29399504,142.68,142.67,0.76]
[1763190084621,1.84066238,142.68,142.67,0.76]
[1763190084824,24.49186238,142.68,142.67,0.76]
[1763190085024,22.79336157,142.68,142.67,0.76]
[1763190086747,24.49186238,142.68,142.67,0.76]
[1763190088551,9.78882769,142.71,142.67,0.76]
[1763190088552,24.34970081,142.7,142.67,0.76]
[1763190088729,31.3613632,142.7,142.67,0.76]
[1763190089131,1.69850081,142.69,142.67,0.76]
[1763190089349,22.6512,142.7,142.67,0.76]
[1763190089556,1.69850081,142.69,142.67,0.76]
[1763190089763,31.3613632,142.7,142.67,0.76]
[1763190089941,1.84066238,142.69,142.67,0.76]
[1763190090260,1.69850081,142.68,142.67,0.76]
[1763190091240,1.69850081,142.68,142.67,0.1]
[1763190091449,1.84066238,142.68,142.67,0.1]
[1763190093060,15.00936678,142.68,142.67,0.1]
[1763190093359,16.70786759,142.68,142.67,0.1]
[1763190094266,14.43936678,142.68,142.67,0.1]
[1763190095350,14.43936678,142.68,142.67,0.76]
[1763190096042,1.69850081,142.69,142.67,0.76]
[1763190096241,1.69850081,142.68,142.67,0.76]
[1763190098566,24.34970081,142.68,142.67,0.76]
[1763190100976,25.31067913,142.68,142.67,0.76]
[1763190103060,22.6512,142.68,142.67,0.76]
[1763190103365,25.31067913,142.68,142.67,0.76]
[1763190104071,35.24166839,142.68,142.67,0.1]
[1763190106468,35.24166839,142.68,142.67,0.81]
[1763190107669,35.24166839,142.68,142.67,0.1]
[1763190108656,38.47114752,142.68,142.67,0.1]
[1763190108974,138.47114752,142.68,142.67,0.1]
[1763190109159,22.6512,142.64,142.61,0.71]
[1763190109477,2.65947913,142.63,142.61,0.71]
[1763190112153,2.65947913,142.62,142.59,0.71]
[1763190113066,0.14216157,142.62,142.59,0.71]
[1763190113660,104.3,142.63,142.59,3.36947913]
[1763190113859,106.95947913,142.63,142.6,0.71]
[1763190114372,104.3,142.63,142.6,0.71]
[1763190114958,106.95947913,142.63,142.6,0.71]
[1763190118468,2.65947913,142.62,142.6,0.71]
[1763190118787,2.65947913,142.61,142.59,0.71]
[1763190118975,2.65947913,142.6,142.59,0.71]
[1763190120963,2.8016407,142.6,142.59,0.71]
[1763190121164,2.8016407,142.6,142.57,0.81]
[1763190121477,2.65947913,142.58,142.57,0.81]
[1763190121670,2.8016407,142.58,142.57,0.1]
[1763190122386,12.59046839,142.58,142.57,0.1]
[1763190123869,13.16046839,142.58,142.57,0.1]
[1763190124067,12.59046839,142.58,142.57,0.1]
[1763190125587,2.8016407,142.58,142.57,0.1]
[1763190126800,2.8016407,142.58,142.57,0.81]
[1763190127293,12.59046839,142.58,142.57,0.1]
[1763190127490,2.8016407,142.58,142.57,0.1]
[1763190128499,12.59046839,142.58,142.57,0.1]
[1763190130786,12.59046839,142.58,142.57,0.81]
[1763190131100,2.8016407,142.58,142.57,0.81]
[1763190131688,0.14216157,142.58,142.57,0.81]
[1763190132199,104.3,142.59,142.57,0.81]
[1763190132577,104.3,142.59,142.57,3.46947913]
[1763190132989,104.3,142.59,142.58,0.7]
[1763190137281,104.3,142.59,142.58,3.35947913]
[1763190138005,104.3,142.59,142.58,0.7]
[1763190141690,2.65947913,142.6,142.58,0.7]
[1763190141892,12.59046839,142.59,142.57,0.1]
[1763190142211,12.44830682,142.58,142.57,0.1]
[1763190142510,13.01830682,142.58,142.57,0.1]
[1763190145837,0.14216157,142.58,142.57,0.81]
[1763190146724,0.14216157,142.58,142.57,0.1]
[1763190147215,2.8016407,142.58,142.57,0.1]
[1763190148923,0.14216157,142.58,142.57,0.1]
[1763190149509,2.8016407,142.58,142.57,0.1]
[1763190152803,0.14216157,142.58,142.57,0.81]
[1763190153200,0.14216157,142.59,142.57,0.81]
[1763190153712,22.79336157,142.61,142.57,3.46947913]
[1763190154018,0.14216157,142.61,142.57,3.46947913]
[1763190154198,0.14216157,142.61,142.58,0.71]
[1763190155220,2.8016407,142.61,142.58,0.71]
[1763190157106,0.14216157,142.61,142.58,0.71]
[1763190157321,2.8016407,142.61,142.58,0.71]
[1763190158924,2.65947913,142.59,142.57,0.1]
[1763190159102,2.65947913,142.59,142.57,0.81]
[1763190159310,104.3,142.58,142.57,0.81]
[1763190159520,2.65947913,142.59,142.57,0.81]
[1763190159912,13.17048199,142.63,142.57,0.81]
[1763190160118,2.65947913,142.6,142.57,0.81]
[1763190160423,0.14216157,142.6,142.57,0.81]
[1763190160613,25.31067913,142.61,142.57,0.81]
[1763190161010,22.6512,142.61,142.57,0.81]
[1763190161229,2.65947913,142.6,142.57,0.81]
[1763190161624,0.14216157,142.59,142.57,0.81]
[1763190163902,1.70399162,142.6,142.57,0.81]
[1763190164112,22.6512,142.61,142.57,0.81]
[1763190164113,24.35519162,142.61,142.57,2.51399162]
[1763190164629,24.35519162,142.61,142.58,0.68]
[1763190165123,19.48688023,142.62,142.58,0.68]
[1763190165325,104.3,142.6,142.58,0.68]
[1763190165641,104.3,142.6,142.58,2.38399162]
[1763190166029,104.3,142.6,142.59,0.68]
[1763190166431,104.3,142.64,142.59,2.38399162]
[1763190166610,104.3,142.64,142.6,1.70399162]
[1763190166930,104.3,142.64,142.6,2.38399162]
[1763190167117,104.3,142.64,142.61,0.68]
[1763190168213,1.84615319,142.63,142.61,0.68]
[1763190168617,0.14216157,142.63,142.61,0.68]
[1763190169031,1.84615319,142.63,142.59,0.68]
[1763190169330,1.84615319,142.63,142.6,0.68]
[1763190173016,11.63498088,142.66,142.61,1.70399162]
[1763190173216,11.63498088,142.66,142.62,0.68]
[1763190174433,12.20498088,142.66,142.62,0.68]
[1763190174633,1.70399162,142.65,142.62,0.68]
[1763190176024,12.20498088,142.66,142.62,0.68]
[1763190177135,11.63498088,142.66,142.62,0.68]
[1763190177315,0.14216157,142.66,142.62,2.38399162]
[1763190177523,104.3,142.67,142.63,1.70399162]
[1763190177823,104.3,142.67,142.64,0.68]
[1763190178215,106.00399162,142.67,142.64,0.68]
[1763190178621,106.00399162,142.67,142.63,1.70399162]
[1763190178622,1.84615319,142.66,142.62,0.68]
[1763190179142,1.84615319,142.66,142.62,2.38399162]
[1763190179143,0.14216157,142.66,142.62,2.38399162]
[1763190179320,104.3,142.65,142.62,2.38399162]
[1763190179518,104.3,142.65,142.63,0.68]
[1763190179750,104.3,142.65,142.63,2.38399162]
[1763190180240,104.3,142.65,142.64,0.68]
[1763190180751,21.07407537,142.69,142.64,2.38399162]
[1763190180913,21.07407537,142.69,142.68,1.70399162]
[1763190181245,104.3,142.73,142.68,11.09667401]
[1763190181410,104.3,142.73,142.71,1.70399162]
[1763190181610,104.3,142.73,142.69,2.38399162]
[1763190181840,0.7,142.72,142.69,2.38399162]
[1763190182042,105.0,142.73,142.69,2.38399162]
[1763190182338,1.70399162,142.71,142.67,0.68]
[1763190182548,1.70399162,142.71,142.66,1.70399162]
[1763190182721,0.7,142.7,142.67,0.68]
[1763190183713,1.70399162,142.71,142.67,0.68]
[1763190183946,2.40399162,142.71,142.67,0.68]
[1763190186721,1.70399162,142.71,142.67,0.68]
[1763190187032,2.40399162,142.7,142.65,2.38399162]
[1763190187237,9.93098926,142.72,142.66,0.68]
[1763190187442,2.54615319,142.71,142.66,2.38399162]
[1763190187620,0.84216157,142.71,142.67,1.70399162]
[1763190187820,0.84216157,142.71,142.67,2.38399162]
[1763190188150,1.70399162,142.7,142.67,0.68]
[1763190188549,2.40399162,142.7,142.67,0.68]
[1763190188846,104.3,142.69,142.67,0.68]
[1763190189645,125.37111501,142.69,142.67,0.68]
[1763190190219,127.07510663,142.69,142.67,0.68]
[1763190191642,127.07510663,142.69,142.64,1.70399162]
[1763190191823,106.71399162,142.68,142.65,0.7]
[1763190192024,1.70399162,142.67,142.62,0.7]
[1763190192247,1.70399162,142.66,142.62,0.7]
[1763190192445,1.70399162,142.65,142.62,0.7]
[1763190192648,8.71717419,142.65,142.62,0.7]
[1763190193029,9.41717419,142.65,142.62,0.7]
[1763190193834,8.71717419,142.65,142.62,0.7]
[1763190194128,2.40399162,142.65,142.62,0.7]
[1763190194452,7.01318257,142.64,142.62,0.7]
[1763190194851,1.70399162,142.65,142.62,0.7]
[1763190195051,1.70399162,142.65,142.57,40.28614509]
[1763190195052,9.93098926,142.64,142.57,40.28614509]
[1763190195238,12.33498088,142.64,142.6,0.66]
[1763190195441,2.54615319,142.64,142.6,0.66]
[1763190195640,23.62615178,142.64,142.6,0.66]
[1763190196765,1.70399162,142.65,142.61,1.70399162]
[1763190197055,21.07851747,142.65,142.61,1.70399162]
[1763190197352,1.70399162,142.66,142.62,0.66]
[1763190197541,19.93789064,142.66,142.62,0.66]
[1763190198042,19.23789064,142.66,142.62,0.66]
[1763190198243,19.93789064,142.66,142.62,0.66]
[1763190198850,19.23789064,142.66,142.62,0.66]
[1763190199782,24.35519162,142.68,142.63,1.70399162]
[1763190199988,41.88909064,142.68,142.63,1.70399162]
[1763190200163,42.58909064,142.68,142.64,0.66]
[1763190201456,17.53389902,142.68,142.65,1.70399162]
[1763190201663,106.70399162,142.7,142.65,1.70399162]
[1763190201960,0.7,142.69,142.66,0.66]
[1763190202664,2.40399162,142.69,142.66,0.66]
[1763190202866,2.40399162,142.69,142.65,0.66]
[1763190203067,2.40399162,142.69,142.62,1.70399162]
[1763190203068,1.70399162,142.67,142.62,1.70399162]
[1763190203360,1.70399162,142.67,142.64,0.66]
[1763190203667,2.40399162,142.67,142.64,0.66]
[1763190204051,0.7,142.66,142.62,2.36399162]
[1763190204255,0.7,142.66,142.63,0.66]
[1763190205959,1.70399162,142.67,142.63,0.66]
[1763190206154,2.40399162,142.67,142.63,0.66]
[1763190206359,0.7,142.66,142.63,0.66]
[1763190206560,0.7,142.66,142.59,40.1834381]
[1763190206561,1.84615319,142.64,142.59,0.66]
[1763190206753,1.84615319,142.64,142.57,0.1]
[1763190206754,1.70399162,142.63,142.6,0.66]
[1763190206954,1.84615319,142.64,142.6,0.66]
[1763190207179,20.08379719,142.64,142.6,0.66]
[1763190207750,20.08379719,142.64,142.6,2.36399162]
[1763190207751,17.537644,142.64,142.6,2.36399162]
[1763190208062,104.3,142.65,142.61,1.70399162]
[1763190208382,105.0,142.65,142.61,2.36399162]
[1763190208554,105.0,142.65,142.62,0.66]
[1763190210562,106.70399162,142.65,142.62,0.66]
[1763190212075,105.0,142.65,142.62,0.66]
[1763190212271,112.01294301,142.65,142.62,0.66]
[1763190213456,104.3,142.65,142.63,1.70399162]
[1763190213857,104.3,142.65,142.64,2.36399162]
[1763190215783,104.3,142.65,142.64,0.66]
[1763190219986,104.3,142.65,142.63,2.36399162]
[1763190220380,104.3,142.65,142.63,0.66]
[1763190222095,105.0,142.65,142.62,1.70399162]
[1763190222390,105.0,142.65,142.62,2.36399162]
[1763190222598,104.3,142.65,142.61,1.70399162]
[1763190222893,105.0,142.65,142.62,0.66]
[1763190223468,106.84615319,142.64,142.59,0.66]
[1763190223866,0.7,142.63,142.59,0.66]
[1763190224786,0.7,142.63,142.59,2.36399162]
[1763190225093,0.7,142.63,142.59,3.32104391]
[1763190225288,0.7,142.63,142.6,0.66]
[1763190226685,0.7,142.63,142.6,3.32104391]
[1763190227282,104.44216157,142.64,142.6,3.32104391]
[1763190227481,105.14216157,142.64,142.61,0.66]
[1763190227774,104.3,142.64,142.62,2.66104391]
[1763190228287,104.3,142.64,142.63,0.66]
[1763190229771,0.7,142.68,142.63,3.32104391]
[1763190229970,105.0,142.69,142.65,2.66104391]
[1763190230271,0.7,142.68,142.65,3.32104391]
[1763190230594,0.7,142.68,142.65,0.66]
[1763190232593,106.96104391,142.69,142.65,3.32104391]
[1763190232594,104.3,142.69,142.65,3.32104391]
[1763190232783,105.0,142.69,142.65,3.32104391]
[1763190233594,104.3,142.69,142.65,3.32104391]
[1763190233797,0.7,142.68,142.65,3.32104391]
[1763190233991,0.7,142.68,142.65,0.66]
[1763190234187,3.36104391,142.68,142.63,3.32104391]
[1763190234701,0.7,142.67,142.64,0.66]
[1763190235287,0.7,142.67,142.63,3.32104391]
[1763190235595,104.3,142.67,142.64,3.32104391]
[1763190236591,105.0,142.67,142.64,3.32104391]
[1763190238208,0.7,142.66,142.64,2.66104391]
[1763190238581,104.3,142.67,142.63,2.66104391]
[1763190238899,105.0,142.67,142.64,0.66]
[1763190239797,104.3,142.67,142.64,3.32104391]
[1763190240097,105.0,142.67,142.64,3.32104391]
[1763190240687,104.3,142.67,142.65,3.32104391]
[1763190241406,0.7,142.68,142.65,3.32104391]
[1763190241791,0.7,142.68,142.64,2.66104391]
[1763190241987,0.7,142.68,142.64,3.32104391]
[1763190242984,3.50320548,142.68,142.62,0.66]
[1763190243186,3.50320548,142.68,142.63,2.66104391]
[1763190243187,8.18662128,142.68,142.63,2.66104391]
[1763190243409,0.7,142.67,142.63,2.66104391]
[1763190243597,0.7,142.67,142.63,3.32104391]
[1763190244286,0.7,142.67,142.64,0.66]
[1763190245403,0.7,142.67,142.64,3.32104391]
[1763190245707,4.82557737,142.68,142.64,3.32104391]
[1763190245890,5.52557737,142.68,142.64,3.32104391]
[1763190246089,0.7,142.67,142.64,3.32104391]
[1763190246606,0.7,142.67,142.63,2.66104391]
[1763190246808,0.7,142.67,142.63,3.32104391]
[1763190247387,105.0,142.67,142.63,3.32104391]
[1763190248699,105.0,142.67,142.64,2.66104391]
[1763190249014,0.7,142.66,142.64,2.66104391]
[1763190249308,104.3,142.67,142.64,3.32104391]
[1763190249509,104.3,142.67,142.65,0.66]
[1763190249699,104.3,142.67,142.64,3.32104391]
[1763190251321,105.01,142.67,142.64,3.32104391]
[1763190251527,104.3,142.67,142.65,0.7]
[1763190251694,104.3,142.67,142.64,3.36104391]
[1763190251888,105.01,142.67,142.64,3.36104391]
[1763190255110,0.72,142.66,142.62,7.01142785]
[1763190255312,0.72,142.66,142.63,3.36104391]
[1763190255626,105.02,142.67,142.63,3.36104391]
[1763190256308,105.02,142.67,142.64,0.7]
[1763190257931,0.72,142.66,142.61,0.7]
[1763190258102,3.38104391,142.66,142.61,2.66104391]
[1763190258437,0.72,142.65,142.61,3.36104391]
[1763190258834,2.80320548,142.64,142.59,3.36104391]
[1763190259293,0.72,142.63,142.59,3.36104391]
[1763190259494,0.72,142.63,142.59,0.7]
[1763190259724,0.72,142.63,142.59,3.36104391]
[1763190260218,0.72,142.63,142.6,0.7]
[1763190260419,0.72,142.63,142.59,3.36104391]
[1763190261224,0.72,142.63,142.6,0.7]
[1763190261912,0.72,142.63,142.59,3.36104391]
[1763190262218,3.38104391,142.63,142.59,0.7]
[1763190262608,0.72,142.63,142.59,3.36104391]
[1763190262810,0.72,142.62,142.59,3.36104391]
[1763190264606,0.72,142.62,142.59,0.7]
[1763190264806,3.52320548,142.64,142.6,0.7]
[1763190265007,0.72,142.63,142.6,0.7]
[1763190265720,3.38104391,142.63,142.6,0.7]
[1763190265938,0.72,142.63,142.6,0.7]
[1763190267740,0.72,142.63,142.59,2.66104391]
[1763190267913,107.68104391,142.63,142.59,0.7]
[1763190268534,3.38104391,142.62,142.57,3.46104391]
[1763190268832,3.38104391,142.62,142.58,0.7]
[1763190269418,0.72,142.61,142.58,0.7]
[1763190271123,0.72,142.61,142.58,3.36104391]
[1763190271505,0.72,142.61,142.57,0.1]
[1763190271711,0.72,142.61,142.57,3.46104391]
[1763190271938,0.72,142.61,142.58,3.36104391]
[1763190272433,0.72,142.61,142.58,0.7]
[1763190273422,0.72,142.61,142.58,3.36104391]
[1763190276737,3.38104391,142.61,142.57,0.1]
[1763190277120,0.72,142.6,142.57,0.1]
[1763190277936,0.72,142.6,142.57,0.8]
[1763190278625,104.3,142.59,142.57,0.1]
[1763190278829,105.02,142.58,142.57,0.1]
[1763190282631,0.72,142.58,142.57,0.1]
[1763190290456,1.84618964,142.59,142.57,0.1]
[1763190290625,0.14216157,142.59,142.57,0.76]
[1763190290833,0.82216157,142.59,142.57,0.76]
[1763190291170,0.82216157,142.59,142.57,0.1]
[1763190298758,22.6512,142.6,142.57,0.76]
[1763190298954,0.68,142.59,142.57,0.1]
[1763190300438,29.66667005,142.6,142.57,0.1]
[1763190300673,1.84618964,142.61,142.58,0.66]
[1763190300674,0.82216157,142.61,142.58,0.66]
[1763190300838,0.82216157,142.6,142.57,0.1]
[1763190301345,1.70402807,142.61,142.58,0.66]
[1763190301545,0.14216157,142.61,142.58,0.66]
[1763190301743,12.31501733,142.61,142.58,0.66]
[1763190302142,2.52618964,142.6,142.57,0.1]
[1763190302358,20.16689095,142.6,142.57,0.1]
[1763190302548,0.82216157,142.59,142.57,0.1]
[1763190302970,2.52618964,142.59,142.57,0.1]
[1763190303143,7.11627947,142.6,142.58,0.66]
[1763190303347,0.68,142.61,142.58,0.66]
[1763190303577,0.82216157,142.61,142.58,0.66]
[1763190304041,21.08444319,142.62,142.58,2.36402807]
[1763190304241,0.14216157,142.62,142.58,2.36402807]
[1763190304452,0.82216157,142.62,142.59,0.66]
[1763190305742,0.82216157,142.62,142.58,0.66]
[1763190306064,0.82216157,142.62,142.58,2.36402807]
[1763190306242,0.82216157,142.62,142.59,0.66]
[1763190306443,0.14216157,142.62,142.59,0.66]
[1763190306640,7.01458264,142.63,142.59,0.66]
[1763190306857,7.69458264,142.63,142.59,0.66]
[1763190307270,7.69458264,142.63,142.59,2.36402807]
[1763190307759,2.52618964,142.62,142.59,0.66]
[1763190308134,106.82618964,142.62,142.59,0.66]
[1763190309139,105.12216157,142.62,142.59,0.66]
[1763190309340,104.3,142.62,142.6,1.70402807]
[1763190309567,104.3,142.62,142.59,2.36402807]
[1763190309769,104.3,142.62,142.6,0.66]
[1763190310065,104.44216157,142.65,142.61,1.70402807]
[1763190310246,111.41409574,142.65,142.63,1.70402807]
[1763190310560,104.3,142.65,142.64,1.70402807]
[1763190310737,104.3,142.65,142.64,2.42402807]
[1763190311355,104.3,142.65,142.64,0.72]
[1763190314369,104.3,142.65,142.64,2.42402807]
[1763190314965,104.3,142.65,142.64,9.43468426]
[1763190315776,104.3,142.65,142.64,2.42402807]
[1763190315984,104.3,142.65,142.63,0.67]
[1763190316175,104.3,142.65,142.63,2.37402807]